[Event "Early-Titled-Tuesday-Blitz-September-12-2023"]
[Site "Chess.com"]
[Date "2023.09.12"]
[Round "1"]
[White "Mr_Lion22"]
[Black "tsaruk_maks"]
[Result "0-1"]
[WhiteElo "2431"]
[BlackElo "2761"]
[TimeControl "180+1"]
[EndTime "8:07:41 PDT"]
[Termination "tsaruk_maks won by resignation"]

1. d4 {[%clk 0:03:00.9]} 1... Nf6 {[%clk 0:02:55.4]} 2. c4 {[%clk 0:03:01]} 2...
e6 {[%clk 0:02:55.9]} 3. Nc3 {[%clk 0:03:01.7]} 3... d5 {[%clk 0:02:56.8]} 4.
cxd5 {[%clk 0:03:00.3]} 4... exd5 {[%clk 0:02:57.7]} 5. Bg5 {[%clk 0:03:00.7]}
5... c6 {[%clk 0:02:57]} 6. e3 {[%clk 0:03:01.2]} 6... Be7 {[%clk 0:02:57.2]} 7.
Bd3 {[%clk 0:03:00.9]} 7... O-O {[%clk 0:02:57.5]} 8. Qc2 {[%clk 0:03:01.6]}
8... Nbd7 {[%clk 0:02:56.3]} 9. Nf3 {[%clk 0:03:00.3]} 9... Re8 {[%clk
0:02:56.1]} 10. O-O-O {[%clk 0:02:54]} 10... Bb4 {[%clk 0:02:26.6]} 11. Bxh7+
{[%clk 0:02:49.5]} 11... Kh8 {[%clk 0:02:25.5]} 12. Bd3 {[%clk 0:02:27.6]} 12...
Qa5 {[%clk 0:02:24.1]} 13. Kb1 {[%clk 0:02:22.5]} 13... Bxc3 {[%clk 0:02:12.7]}
14. Qxc3 {[%clk 0:02:23.4]} 14... Qxc3 {[%clk 0:02:13.1]} 15. bxc3 {[%clk
0:02:24.3]} 15... Ne4 {[%clk 0:02:13.2]} 16. Bxe4 {[%clk 0:02:22.3]} 16... Rxe4
{[%clk 0:02:08.2]} 17. Nd2 {[%clk 0:02:22.4]} 17... Rg4 {[%clk 0:02:03.6]} 18.
Bf4 {[%clk 0:02:14.4]} 18... Rxg2 {[%clk 0:01:59]} 19. Bg3 {[%clk 0:02:14.9]}
19... Nf6 {[%clk 0:01:59.6]} 20. Rdf1 {[%clk 0:01:19.8]} 20... Bf5+ {[%clk
0:01:53.1]} 21. Kc1 {[%clk 0:01:03.3]} 21... Re8 {[%clk 0:01:54]} 22. Nf3 {[%clk
0:01:02.1]} 22... Bd3 {[%clk 0:01:35.2]} 23. Re1 {[%clk 0:01:00.2]} 23... Ne4
{[%clk 0:01:18.9]} 24. Nh4 {[%clk 0:01:00.4]} 24... Rxf2 {[%clk 0:01:18.6]} 25.
Bxf2 {[%clk 0:00:58.3]} 25... Nxf2 {[%clk 0:01:19.5]} 26. Rhg1 {[%clk
0:00:20.2]} 26... Bh7 {[%clk 0:01:18.3]} 27. Re2 {[%clk 0:00:18.7]} 27... Ne4
{[%clk 0:01:14.8]} 28. Kb2 {[%clk 0:00:18.3]} 28... Re6 {[%clk 0:01:02.3]} 29.
Nf3 {[%clk 0:00:18.4]} 29... c5 {[%clk 0:01:01.6]} 30. Ng5 {[%clk 0:00:17.6]}
30... Rb6+ {[%clk 0:01:01.3]} 31. Ka1 {[%clk 0:00:14.8]} 31... Nxg5 {[%clk
0:00:59.3]} 32. Reg2 {[%clk 0:00:09.6]} 32... Nf3 {[%clk 0:00:54.4]} 33. Rf1
{[%clk 0:00:06.8]} 33... c4 {[%clk 0:00:53.7]} 34. Rgf2 {[%clk 0:00:04.3]} 34...
Ng5 {[%clk 0:00:31.3]} 35. h4 {[%clk 0:00:04.4]} 35... Ne4 {[%clk 0:00:31.8]}
36. Rxf7 {[%clk 0:00:05.1]} 36... Nxc3 {[%clk 0:00:32]} 37. Rf8+ {[%clk
0:00:05.4]} 37... Bg8 {[%clk 0:00:32.6]} 38. Rc1 {[%clk 0:00:05.1]} 38... Ne4
{[%clk 0:00:26.4]} 39. Rb8 {[%clk 0:00:05.3]} 39... c3 {[%clk 0:00:26.2]} 40. a4
{[%clk 0:00:03.3]} 40... Kh7 {[%clk 0:00:20.6]} 41. a5 {[%clk 0:00:03.4]} 41...
Rb5 {[%clk 0:00:20.8]} 42. Rf1 {[%clk 0:00:03]} 42... Be6 {[%clk 0:00:18.7]} 0-1

[Event "Early-Titled-Tuesday-Blitz-September-12-2023"]
[Site "Chess.com"]
[Date "2023.09.12"]
[Round "1"]
[White "Shuvalov"]
[Black "AlexPapasimakopoulos"]
[Result "0-1"]
[WhiteElo "2429"]
[BlackElo "2758"]
[TimeControl "180+1"]
[EndTime "8:07:41 PDT"]
[Termination "AlexPapasimakopoulos won by resignation"]

1. d4 {[%clk 0:02:57.3]} 1... d5 {[%clk 0:02:38.6]} 2. c4 {[%clk 0:02:56.9]}
2... e6 {[%clk 0:02:38.4]} 3. Nc3 {[%clk 0:02:55.4]} 3... a6 {[%clk 0:02:38.4]}
4. c5 {[%clk 0:02:54.5]} 4... e5 {[%clk 0:02:36.2]} 5. dxe5 {[%clk 0:02:54.3]}
5... d4 {[%clk 0:02:36.3]} 6. Na4 {[%clk 0:02:54.5]} 6... Nc6 {[%clk 0:02:30.7]}
7. Nf3 {[%clk 0:02:53.8]} 7... Bg4 {[%clk 0:02:29.1]} 8. e3 {[%clk 0:02:36.3]}
8... Nxe5 {[%clk 0:02:14.9]} 9. exd4 {[%clk 0:02:29.3]} 9... Bxf3 {[%clk
0:02:13.4]} 10. gxf3 {[%clk 0:02:25.9]} 10... Qxd4 {[%clk 0:02:13]} 11. Be3
{[%clk 0:02:14.1]} 11... Qxd1+ {[%clk 0:02:06.7]} 12. Rxd1 {[%clk 0:02:15]}
12... Nxf3+ {[%clk 0:02:03.5]} 13. Ke2 {[%clk 0:02:15.6]} 13... Ne5 {[%clk
0:02:03.7]} 14. Bg2 {[%clk 0:02:14.9]} 14... Nc6 {[%clk 0:01:59.5]} 15. Rhe1
{[%clk 0:02:08.3]} 15... Be7 {[%clk 0:01:54.5]} 16. Kf1 {[%clk 0:02:05.3]} 16...
Rd8 {[%clk 0:01:53.9]} 17. a3 {[%clk 0:01:59.4]} 17... Nf6 {[%clk 0:01:50]} 18.
b4 {[%clk 0:01:56.8]} 18... O-O {[%clk 0:01:39.8]} 19. Bf4 {[%clk 0:01:55.3]}
19... Rxd1 {[%clk 0:01:38.6]} 20. Rxd1 {[%clk 0:01:55.9]} 20... Rc8 {[%clk
0:01:38.4]} 21. Bh3 {[%clk 0:01:53.5]} 21... Rd8 {[%clk 0:01:37.1]} 22. Re1
{[%clk 0:01:39.3]} 22... Nd5 {[%clk 0:01:31.5]} 23. Bg3 {[%clk 0:01:38.3]} 23...
Kf8 {[%clk 0:01:28.4]} 24. Bg2 {[%clk 0:01:33.8]} 24... f5 {[%clk 0:00:58.5]}
25. Bxd5 {[%clk 0:01:13.2]} 25... Rxd5 {[%clk 0:00:57.9]} 26. Bxc7 {[%clk
0:01:13.9]} 26... Rd3 {[%clk 0:00:54.2]} 27. Re3 {[%clk 0:01:13.3]} 27... Rxe3
{[%clk 0:00:51]} 28. fxe3 {[%clk 0:01:14.2]} 28... Kf7 {[%clk 0:00:50.6]} 29.
Nb6 {[%clk 0:01:10.6]} 29... Ke6 {[%clk 0:00:50.4]} 30. Ke2 {[%clk 0:01:10.3]}
30... Bf6 {[%clk 0:00:50.8]} 31. Kd3 {[%clk 0:01:07.4]} 31... Bb2 {[%clk
0:00:47.5]} 32. Nc4 {[%clk 0:01:06.3]} 32... Bf6 {[%clk 0:00:47.5]} 33. Bg3
{[%clk 0:00:57.8]} 33... g5 {[%clk 0:00:45.2]} 34. Nd6 {[%clk 0:00:50.4]} 34...
Nd8 {[%clk 0:00:39.5]} 35. Kc4 {[%clk 0:00:45.7]} 35... Be7 {[%clk 0:00:39.1]}
36. Nc8 {[%clk 0:00:41.1]} 36... h5 {[%clk 0:00:25]} 37. a4 {[%clk 0:00:34.2]}
37... h4 {[%clk 0:00:23]} 38. Be1 {[%clk 0:00:21]} 38... Bf6 {[%clk 0:00:22]}
39. b5 {[%clk 0:00:19.5]} 39... g4 {[%clk 0:00:19.3]} 40. Nd6 {[%clk 0:00:18.4]}
40... axb5+ {[%clk 0:00:17.9]} 41. axb5 {[%clk 0:00:18.2]} 41... h3 {[%clk
0:00:16.3]} 42. Bg3 {[%clk 0:00:17.4]} 42... Be5 {[%clk 0:00:16.3]} 43. Bxe5
{[%clk 0:00:17.4]} 43... Kxe5 {[%clk 0:00:17.2]} 44. b6 {[%clk 0:00:14.7]} 44...
g3 {[%clk 0:00:16.9]} 45. Nxb7 {[%clk 0:00:13.5]} 45... Nxb7 {[%clk 0:00:16.5]}
46. c6 {[%clk 0:00:14]} 46... Nd6+ {[%clk 0:00:16.9]} 47. Kc5 {[%clk 0:00:14.4]}
47... gxh2 {[%clk 0:00:17.1]} 48. b7 {[%clk 0:00:14.8]} 48... h1=Q {[%clk
0:00:14.6]} 49. b8=Q {[%clk 0:00:15.7]} 49... Qc1+ {[%clk 0:00:14.9]} 50. Kb6
{[%clk 0:00:14.2]} 50... Qb2+ {[%clk 0:00:15.4]} 51. Kc7 {[%clk 0:00:14.7]}
51... Qxb8+ {[%clk 0:00:15.9]} 52. Kxb8 {[%clk 0:00:15.6]} 52... h2 {[%clk
0:00:16.2]} 53. c7 {[%clk 0:00:16.3]} 53... h1=Q {[%clk 0:00:16.7]} 54. c8=Q
{[%clk 0:00:17]} 54... Nxc8 {[%clk 0:00:16.7]} 55. Kxc8 {[%clk 0:00:17.9]} 55...
Qc6+ {[%clk 0:00:16.5]} 0-1

[Event "Early-Titled-Tuesday-Blitz-September-12-2023"]
[Site "Chess.com"]
[Date "2023.09.12"]
[Round "1"]
[White "Mikedannnn"]
[Black "Kapitan_Bayan"]
[Result "1-0"]
[WhiteElo "2560"]
[BlackElo "2192"]
[TimeControl "180+1"]
[EndTime "8:07:47 PDT"]
[Termination "Mikedannnn won on time"]

1. e4 {[%clk 0:03:00.2]} 1... c5 {[%clk 0:02:59.7]} 2. Nf3 {[%clk 0:03:00]} 2...
d6 {[%clk 0:03:00.3]} 3. d4 {[%clk 0:03:00]} 3... cxd4 {[%clk 0:03:01.2]} 4.
Nxd4 {[%clk 0:03:00.8]} 4... Nf6 {[%clk 0:03:01.9]} 5. Nc3 {[%clk 0:03:01.5]}
5... a6 {[%clk 0:03:02.5]} 6. f4 {[%clk 0:03:01.2]} 6... e5 {[%clk 0:03:00.1]}
7. Nf3 {[%clk 0:03:00.9]} 7... Nbd7 {[%clk 0:02:52]} 8. a4 {[%clk 0:02:59.5]}
8... Be7 {[%clk 0:02:48.7]} 9. Bc4 {[%clk 0:02:59.5]} 9... O-O {[%clk
0:02:47.2]} 10. O-O {[%clk 0:02:59.3]} 10... Qc7 {[%clk 0:02:44.5]} 11. Qe2
{[%clk 0:02:54.8]} 11... b6 {[%clk 0:02:41.8]} 12. Nh4 {[%clk 0:02:10.9]} 12...
Bb7 {[%clk 0:02:14.8]} 13. Nf5 {[%clk 0:02:08.5]} 13... Nc5 {[%clk 0:02:13.8]}
14. fxe5 {[%clk 0:02:04.9]} 14... dxe5 {[%clk 0:02:13.3]} 15. Nxe7+ {[%clk
0:02:02.8]} 15... Qxe7 {[%clk 0:02:14.2]} 16. Bg5 {[%clk 0:02:03.1]} 16... Ne6
{[%clk 0:01:31.5]} 17. Bxf6 {[%clk 0:02:00.8]} 17... gxf6 {[%clk 0:01:31.3]} 18.
Bd5 {[%clk 0:01:51.9]} 18... Nd4 {[%clk 0:01:16.3]} 19. Qg4+ {[%clk 0:01:49.1]}
19... Kh8 {[%clk 0:01:15.3]} 20. Bxb7 {[%clk 0:01:48.9]} 20... Qxb7 {[%clk
0:01:14.7]} 21. Qh4 {[%clk 0:01:36.1]} 21... Rg8 {[%clk 0:00:41.5]} 22. Qxf6+
{[%clk 0:01:33.7]} 22... Rg7 {[%clk 0:00:41.6]} 23. Nd5 {[%clk 0:01:15.7]} 23...
Nxc2 {[%clk 0:00:33.3]} 24. Rac1 {[%clk 0:01:11.7]} 24... Rc8 {[%clk 0:00:29.4]}
25. Ne7 {[%clk 0:00:57.5]} 25... Qxe4 {[%clk 0:00:22]} 26. Rf2 {[%clk
0:00:31.4]} 26... Re8 {[%clk 0:00:16.1]} 27. Nf5 {[%clk 0:00:26.1]} 27... Rg8
{[%clk 0:00:05.6]} 28. Rfxc2 {[%clk 0:00:25.8]} 28... h5 {[%clk 0:00:02.4]} 29.
Rf2 {[%clk 0:00:10]} 29... Qd5 {[%clk 0:00:01.5]} 30. Qh6+ {[%clk 0:00:08.1]}
30... Rh7 {[%clk 0:00:01.6]} 31. Qf6+ {[%clk 0:00:08.5]} 31... Rhg7 {[%clk
0:00:01.9]} 32. Nxg7 {[%clk 0:00:08.6]} 32... Rxg7 {[%clk 0:00:01.7]} 33. Re1
{[%clk 0:00:09.2]} 33... Kg8 {[%clk 0:00:01.2]} 34. Rxe5 {[%clk 0:00:08.6]}
34... Qd1+ {[%clk 0:00:01.1]} 35. Rf1 {[%clk 0:00:08.5]} 35... Qd4+ {[%clk
0:00:01.4]} 36. Kh1 {[%clk 0:00:08.8]} 36... Qd2 {[%clk 0:00:01.4]} 37. Re8+
{[%clk 0:00:06.7]} 37... Kh7 {[%clk 0:00:02.1]} 38. Qf5+ {[%clk 0:00:06.4]}
38... Kh6 {[%clk 0:00:02.1]} 39. Qe4 {[%clk 0:00:06.1]} 39... Rg6 {[%clk
0:00:01.6]} 40. Rh8+ {[%clk 0:00:05.3]} 1-0

[Event "Early-Titled-Tuesday-Blitz-September-12-2023"]
[Site "Chess.com"]
[Date "2023.09.12"]
[Round "1"]
[White "BlueWizzard"]
[Black "ejam94"]
[Result "1-0"]
[WhiteElo "2978"]
[BlackElo "2520"]
[TimeControl "180+1"]
[EndTime "8:07:48 PDT"]
[Termination "BlueWizzard won by resignation"]

1. d4 {[%clk 0:03:00.9]} 1... Nf6 {[%clk 0:02:55.9]} 2. Nc3 {[%clk 0:03:01.4]}
2... d5 {[%clk 0:02:55.4]} 3. Nf3 {[%clk 0:03:02.1]} 3... g6 {[%clk 0:02:55.4]}
4. g3 {[%clk 0:03:00.9]} 4... Bg7 {[%clk 0:02:55.7]} 5. Bg2 {[%clk 0:03:01.6]}
5... O-O {[%clk 0:02:56.2]} 6. O-O {[%clk 0:03:01.9]} 6... c5 {[%clk 0:02:51.4]}
7. Bf4 {[%clk 0:02:58.9]} 7... Nc6 {[%clk 0:02:50.4]} 8. dxc5 {[%clk 0:02:57.4]}
8... d4 {[%clk 0:02:36.9]} 9. Na4 {[%clk 0:02:56.6]} 9... Nd5 {[%clk 0:02:33.4]}
10. Bd2 {[%clk 0:02:55.7]} 10... e5 {[%clk 0:02:30]} 11. c3 {[%clk 0:02:47]}
11... Qe7 {[%clk 0:02:14.9]} 12. Qb3 {[%clk 0:02:28.6]} 12... dxc3 {[%clk
0:02:08.4]} 13. Bg5 {[%clk 0:02:19.5]} 13... Qe6 {[%clk 0:01:56.3]} 14. e4
{[%clk 0:02:08.9]} 14... Nc7 {[%clk 0:01:40.8]} 15. Qxc3 {[%clk 0:02:02.2]}
15... Nb5 {[%clk 0:01:34.4]} 16. Qd3 {[%clk 0:01:50.5]} 16... Nbd4 {[%clk
0:01:32.3]} 17. Nc3 {[%clk 0:01:45]} 17... h6 {[%clk 0:01:12.8]} 18. Be3 {[%clk
0:01:42.2]} 18... Qe7 {[%clk 0:01:12.8]} 19. Rac1 {[%clk 0:01:21.9]} 19... Qxc5
{[%clk 0:01:07]} 20. Nxd4 {[%clk 0:01:21.3]} 20... exd4 {[%clk 0:01:01]} 21. Nd5
{[%clk 0:01:21.3]} 21... Qa5 {[%clk 0:00:53.2]} 22. Bd2 {[%clk 0:01:12.8]} 22...
Qd8 {[%clk 0:00:42.9]} 23. Bf4 {[%clk 0:01:02.6]} 23... Bg4 {[%clk 0:00:41]} 24.
h3 {[%clk 0:00:59]} 24... Be6 {[%clk 0:00:37.2]} 25. Nc7 {[%clk 0:00:51]} 25...
Rc8 {[%clk 0:00:36.9]} 26. Nxe6 {[%clk 0:00:51]} 26... fxe6 {[%clk 0:00:36.9]}
27. a3 {[%clk 0:00:41.3]} 27... g5 {[%clk 0:00:30.9]} 28. Bd2 {[%clk 0:00:41.3]}
28... Ne5 {[%clk 0:00:31.1]} 29. Qb3 {[%clk 0:00:40.6]} 29... Qd7 {[%clk
0:00:29]} 30. f4 {[%clk 0:00:39.4]} 30... gxf4 {[%clk 0:00:28.7]} 31. gxf4
{[%clk 0:00:40.3]} 31... Rxc1 {[%clk 0:00:25.2]} 32. Bxc1 {[%clk 0:00:39.1]}
32... Nc6 {[%clk 0:00:21.3]} 33. e5 {[%clk 0:00:37.2]} 33... Kh8 {[%clk
0:00:19.8]} 34. Qd3 {[%clk 0:00:34.1]} 34... Ne7 {[%clk 0:00:15.5]} 35. Kh2
{[%clk 0:00:33.1]} 35... Nf5 {[%clk 0:00:15.8]} 36. Be4 {[%clk 0:00:33.4]} 36...
Rc8 {[%clk 0:00:14.3]} 37. Rg1 {[%clk 0:00:32]} 37... a6 {[%clk 0:00:12.1]} 38.
Bd2 {[%clk 0:00:31.8]} 38... Qf7 {[%clk 0:00:11.7]} 39. Qf3 {[%clk 0:00:28.3]}
39... Qd7 {[%clk 0:00:10.7]} 40. Qg4 {[%clk 0:00:27]} 40... Qf7 {[%clk
0:00:10.5]} 41. a4 {[%clk 0:00:24.2]} 41... Rc7 {[%clk 0:00:10.8]} 42. b4 {[%clk
0:00:23.8]} 42... b6 {[%clk 0:00:10.3]} 43. Bd3 {[%clk 0:00:22.8]} 43... b5
{[%clk 0:00:10.1]} 44. axb5 {[%clk 0:00:22.4]} 44... axb5 {[%clk 0:00:10.4]} 45.
Ra1 {[%clk 0:00:22.3]} 45... Ne3 {[%clk 0:00:10.2]} 46. Bxe3 {[%clk 0:00:19]}
46... dxe3 {[%clk 0:00:09.7]} 47. Qf3 {[%clk 0:00:16.9]} 47... Bxe5 {[%clk
0:00:08.7]} 48. Ra8+ {[%clk 0:00:17.5]} 48... Kg7 {[%clk 0:00:08.7]} 49. Qg3+
{[%clk 0:00:17.2]} 49... Kf6 {[%clk 0:00:06.8]} 50. fxe5+ {[%clk 0:00:17.6]}
50... Ke7 {[%clk 0:00:07.3]} 51. Qh4+ {[%clk 0:00:18.1]} 51... Kd7 {[%clk
0:00:05.5]} 52. Qd8+ {[%clk 0:00:19]} 52... Kc6 {[%clk 0:00:05.8]} 53. Be4+
{[%clk 0:00:19.4]} 53... Kb6 {[%clk 0:00:03.9]} 54. Qd6+ {[%clk 0:00:19.8]} 1-0

[Event "Early-Titled-Tuesday-Blitz-September-12-2023"]
[Site "Chess.com"]
[Date "2023.09.12"]
[Round "1"]
[White "Jaka_Brilej"]
[Black "Egor_Koshulyan"]
[Result "1-0"]
[WhiteElo "2438"]
[BlackElo "2732"]
[TimeControl "180+1"]
[EndTime "8:07:48 PDT"]
[Termination "Jaka_Brilej won by resignation"]

1. d4 {[%clk 0:02:58.2]} 1... Nf6 {[%clk 0:02:58]} 2. Bg5 {[%clk 0:02:57.7]}
2... d5 {[%clk 0:02:56]} 3. Bxf6 {[%clk 0:02:56.5]} 3... gxf6 {[%clk 0:02:55.8]}
4. e3 {[%clk 0:02:56.8]} 4... c5 {[%clk 0:02:53.9]} 5. dxc5 {[%clk 0:02:57.7]}
5... e5 {[%clk 0:02:37.8]} 6. Nc3 {[%clk 0:02:33.8]} 6... Be6 {[%clk 0:02:36.3]}
7. Qf3 {[%clk 0:02:21]} 7... e4 {[%clk 0:01:47.1]} 8. Qh5 {[%clk 0:01:58.3]}
8... Bxc5 {[%clk 0:01:20.7]} 9. O-O-O {[%clk 0:01:57.6]} 9... Rg8 {[%clk
0:01:07.2]} 10. Qxh7 {[%clk 0:01:17.1]} 10... Ke7 {[%clk 0:00:49.1]} 11. Nge2
{[%clk 0:01:09.2]} 11... Qf8 {[%clk 0:00:45.7]} 12. Nxd5+ {[%clk 0:01:01.8]}
12... Bxd5 {[%clk 0:00:38.6]} 13. Rxd5 {[%clk 0:01:02.7]} 13... Rg5 {[%clk
0:00:28.5]} 14. Qxe4+ {[%clk 0:00:55.6]} 14... Re5 {[%clk 0:00:29.1]} 15. Rxe5+
{[%clk 0:00:46.9]} 15... fxe5 {[%clk 0:00:30]} 16. Qxe5+ {[%clk 0:00:47.5]}
16... Kd7 {[%clk 0:00:30.7]} 17. Qd5+ {[%clk 0:00:42.6]} 17... Kc7 {[%clk
0:00:30.3]} 18. Nc3 {[%clk 0:00:40.1]} 18... Nc6 {[%clk 0:00:30.2]} 19. Nb5+
{[%clk 0:00:38.7]} 19... Kb6 {[%clk 0:00:30.6]} 20. Nc3 {[%clk 0:00:21]} 20...
Rd8 {[%clk 0:00:29.6]} 21. Na4+ {[%clk 0:00:20.6]} 21... Kc7 {[%clk 0:00:30.4]}
22. Qxc5 {[%clk 0:00:20.7]} 22... Qg7 {[%clk 0:00:28]} 23. Nc3 {[%clk
0:00:17.8]} 23... Qg4 {[%clk 0:00:24.8]} 24. Bb5 {[%clk 0:00:14.6]} 24... Qxg2
{[%clk 0:00:23.6]} 25. Rd1 {[%clk 0:00:15.2]} 25... Re8 {[%clk 0:00:20.5]} 26.
Bxc6 {[%clk 0:00:14.9]} 26... Qxc6 {[%clk 0:00:20.1]} 27. Qxc6+ {[%clk
0:00:14.8]} 27... Kxc6 {[%clk 0:00:21]} 28. Rd4 {[%clk 0:00:14.7]} 28... Rh8
{[%clk 0:00:21.3]} 29. Rf4 {[%clk 0:00:14.8]} 29... Rxh2 {[%clk 0:00:21.4]} 30.
Rxf7 {[%clk 0:00:14.9]} 30... b5 {[%clk 0:00:21.5]} 31. a3 {[%clk 0:00:14.9]}
31... a5 {[%clk 0:00:21.7]} 32. Rf6+ {[%clk 0:00:15.2]} 32... Kc5 {[%clk
0:00:21.9]} 33. Rf5+ {[%clk 0:00:15.5]} 33... Kc4 {[%clk 0:00:22.4]} 34. Kd2
{[%clk 0:00:13.1]} 34... a4 {[%clk 0:00:21.5]} 35. Rf4+ {[%clk 0:00:13]} 35...
Kc5 {[%clk 0:00:20.7]} 36. Rf5+ {[%clk 0:00:13.1]} 36... Kc4 {[%clk 0:00:21]}
37. e4 {[%clk 0:00:12.3]} 37... b4 {[%clk 0:00:16.3]} 38. axb4 {[%clk
0:00:12.2]} 38... a3 {[%clk 0:00:17]} 39. Rc5+ {[%clk 0:00:06.3]} 39... Kd4
{[%clk 0:00:15.6]} 40. Rd5+ {[%clk 0:00:06.2]} 40... Kc4 {[%clk 0:00:15.5]} 41.
Rc5+ {[%clk 0:00:06.5]} 41... Kd4 {[%clk 0:00:15.9]} 42. Ne2+ {[%clk 0:00:06.4]}
42... Kxe4 {[%clk 0:00:15.5]} 43. bxa3 {[%clk 0:00:07]} 43... Rxf2 {[%clk
0:00:15.7]} 44. Rc4+ {[%clk 0:00:07.4]} 44... Kd5 {[%clk 0:00:15.9]} 45. Rd4+
{[%clk 0:00:07.7]} 45... Kc6 {[%clk 0:00:16.5]} 46. c3 {[%clk 0:00:08.1]} 46...
Kb5 {[%clk 0:00:16.9]} 47. Rd5+ {[%clk 0:00:07.9]} 47... Kc4 {[%clk 0:00:17.4]}
48. Rc5+ {[%clk 0:00:08.1]} 48... Kb3 {[%clk 0:00:18]} 49. b5 {[%clk 0:00:08.7]}
49... Kxa3 {[%clk 0:00:18.1]} 50. b6 {[%clk 0:00:09.1]} 50... Rf6 {[%clk
0:00:18]} 51. Rb5 {[%clk 0:00:08.8]} 51... Ka4 {[%clk 0:00:18.4]} 52. Rb4+
{[%clk 0:00:09.4]} 52... Ka5 {[%clk 0:00:18.5]} 53. b7 {[%clk 0:00:10.1]} 53...
Rf8 {[%clk 0:00:19.1]} 54. b8=Q {[%clk 0:00:10.2]} 54... Rxb8 {[%clk 0:00:20]}
55. Rxb8 {[%clk 0:00:09.9]} 1-0

[Event "Early-Titled-Tuesday-Blitz-September-12-2023"]
[Site "Chess.com"]
[Date "2023.09.12"]
[Round "1"]
[White "Herman-NY"]
[Black "Sina_Movahed"]
[Result "0-1"]
[WhiteElo "2529"]
[BlackElo "3061"]
[TimeControl "180+1"]
[EndTime "8:07:52 PDT"]
[Termination "Sina_Movahed won by resignation"]

1. e4 {[%clk 0:02:48.3]} 1... c5 {[%clk 0:02:59.7]} 2. Nf3 {[%clk 0:02:48.5]}
2... d6 {[%clk 0:02:59.7]} 3. d4 {[%clk 0:02:48.9]} 3... cxd4 {[%clk 0:03:00.3]}
4. Nxd4 {[%clk 0:02:49.8]} 4... Nf6 {[%clk 0:03:00.8]} 5. Nc3 {[%clk 0:02:50.3]}
5... a6 {[%clk 0:03:01.1]} 6. Bc4 {[%clk 0:02:50.9]} 6... g6 {[%clk 0:02:51.7]}
7. f3 {[%clk 0:02:40.3]} 7... Bg7 {[%clk 0:02:50.9]} 8. Be3 {[%clk 0:02:39.2]}
8... b5 {[%clk 0:02:50.7]} 9. Bb3 {[%clk 0:02:39]} 9... Bb7 {[%clk 0:02:50.2]}
10. Qd2 {[%clk 0:02:39.6]} 10... Nbd7 {[%clk 0:02:50]} 11. Bh6 {[%clk
0:02:35.8]} 11... Bxh6 {[%clk 0:02:24.1]} 12. Qxh6 {[%clk 0:02:36.7]} 12... e6
{[%clk 0:02:16.6]} 13. O-O-O {[%clk 0:02:20.7]} 13... Qe7 {[%clk 0:02:16.4]} 14.
Rhe1 {[%clk 0:01:54.1]} 14... O-O-O {[%clk 0:02:12.1]} 15. a3 {[%clk 0:00:43.2]}
15... Nc5 {[%clk 0:02:09.1]} 16. Ba2 {[%clk 0:00:43.5]} 16... Nfd7 {[%clk
0:02:03.6]} 17. b4 {[%clk 0:00:34.5]} 17... Na4 {[%clk 0:01:49.5]} 18. Nxa4
{[%clk 0:00:34.8]} 18... bxa4 {[%clk 0:01:50.4]} 19. c4 {[%clk 0:00:35.5]} 19...
Kb8 {[%clk 0:01:48]} 20. Kb1 {[%clk 0:00:33.8]} 20... Rc8 {[%clk 0:01:45.2]} 21.
Rc1 {[%clk 0:00:34]} 21... Ne5 {[%clk 0:01:44]} 22. Qe3 {[%clk 0:00:31.4]} 22...
Rc7 {[%clk 0:01:37.3]} 23. Rc2 {[%clk 0:00:29.7]} 23... Rhc8 {[%clk 0:01:37.8]}
24. Rec1 {[%clk 0:00:30.2]} 24... h5 {[%clk 0:01:35.4]} 25. h3 {[%clk
0:00:21.8]} 25... g5 {[%clk 0:01:30.9]} 26. g3 {[%clk 0:00:18.7]} 26... g4
{[%clk 0:01:23.9]} 27. hxg4 {[%clk 0:00:18.5]} 27... hxg4 {[%clk 0:01:24.8]} 28.
f4 {[%clk 0:00:19.3]} 28... Nd7 {[%clk 0:01:24.5]} 29. Ka1 {[%clk 0:00:15.1]}
29... Qf6 {[%clk 0:01:16.1]} 30. Rc3 {[%clk 0:00:15.2]} 30... Qg6 {[%clk
0:01:07.6]} 31. Bb1 {[%clk 0:00:14.8]} 31... Qf6 {[%clk 0:01:08]} 32. Ka2 {[%clk
0:00:14.4]} 32... Nb6 {[%clk 0:01:05.1]} 33. Bd3 {[%clk 0:00:14.1]} 33... Nd7
{[%clk 0:00:55.6]} 34. R1c2 {[%clk 0:00:10.2]} 34... Qh8 {[%clk 0:00:46.3]} 35.
Ne2 {[%clk 0:00:10.3]} 35... e5 {[%clk 0:00:40.4]} 36. f5 {[%clk 0:00:10]} 36...
Qd8 {[%clk 0:00:34.3]} 37. Rc1 {[%clk 0:00:07.2]} 37... Rc6 {[%clk 0:00:33.7]}
38. R3c2 {[%clk 0:00:07.1]} 38... Nb6 {[%clk 0:00:32.2]} 39. Rc3 {[%clk
0:00:05.4]} 39... f6 {[%clk 0:00:32.6]} 40. Qh6 {[%clk 0:00:04]} 40... Qe7
{[%clk 0:00:28.1]} 41. Kb2 {[%clk 0:00:04.3]} 41... a5 {[%clk 0:00:25.5]} 42. b5
{[%clk 0:00:04.1]} 42... Rc5 {[%clk 0:00:25.5]} 43. Qe3 {[%clk 0:00:05]} 43...
Qf7 {[%clk 0:00:24.9]} 44. R1c2 {[%clk 0:00:05.6]} 44... R8c7 {[%clk 0:00:24]}
45. Qc1 {[%clk 0:00:05.4]} 45... Bc8 {[%clk 0:00:24.3]} 46. Ka1 {[%clk
0:00:04.8]} 46... Kb7 {[%clk 0:00:24.9]} 47. Qe3 {[%clk 0:00:05.1]} 47... Bd7
{[%clk 0:00:25.3]} 48. Qc1 {[%clk 0:00:05.5]} 48... Qf8 {[%clk 0:00:24.2]} 49.
Qd2 {[%clk 0:00:06]} 49... Be8 {[%clk 0:00:24.6]} 50. Kb2 {[%clk 0:00:06.4]}
50... Bf7 {[%clk 0:00:25.1]} 51. Nc1 {[%clk 0:00:05.5]} 51... Qg8 {[%clk
0:00:22.6]} 52. Kb1 {[%clk 0:00:04.4]} 52... Bxc4 {[%clk 0:00:21.8]} 53. Bxc4
{[%clk 0:00:03.2]} 53... Nxc4 {[%clk 0:00:21.5]} 54. Rxc4 {[%clk 0:00:02.9]}
54... Rxc4 {[%clk 0:00:21.6]} 55. Rxc4 {[%clk 0:00:02.1]} 55... Qxc4 {[%clk
0:00:22.5]} 56. Qxa5 {[%clk 0:00:01.8]} 56... Qxc1+ {[%clk 0:00:22]} 0-1